[Event "MCR rapid mládeže 2023 U16"]
[Site "Harachov, Czech Republic"]
[Date "2023.09.09"]
[Round "1.6"]
[White "Setina, Vaclav"]
[Black "Sotek, Simon"]
[Result "1/2-1/2"]
[TimeControl "20min+5s/move"]
[WhiteElo "1876"]
[BlackElo "1526"]

1. d4 {[%clk 00:20:06]} {[%emt 00:00:03]} d5 {[%clk 00:20:06]} {[%emt
00:00:04]} 2. Nf3 {[%clk 00:20:10]} {[%emt 00:00:01]} Nf6 {[%clk 00:19:54]}
{[%emt 00:00:17]} 3. g3 {[%clk 00:20:14]} {[%emt 00:00:01]} Bf5 {[%clk
00:19:35]} {[%emt 00:00:24]} 4. Bg2 {[%clk 00:20:17]} {[%emt 00:00:02]} e6
{[%clk 00:19:37]} {[%emt 00:00:03]} 5. O-O {[%clk 00:20:20]} {[%emt 00:00:02]}
Nbd7 {[%clk 00:19:34]} {[%emt 00:00:08]} 6. b3 {[%clk 00:18:59]} {[%emt
00:01:25]} Bd6 {[%clk 00:18:35]} {[%emt 00:01:04]} 7. Nbd2 {[%clk 00:18:28]}
{[%emt 00:00:37]} O-O {[%clk 00:16:09]} {[%emt 00:02:30]} 8. Bb2 {[%clk
00:18:30]} {[%emt 00:00:03]} h6 {[%clk 00:15:46]} {[%emt 00:00:27]} 9. c4
{[%clk 00:18:24]} {[%emt 00:00:12]} c6 {[%clk 00:15:41]} {[%emt 00:00:11]} 10.
Ne5 {[%clk 00:18:16]} {[%emt 00:00:13]} Qc7 {[%clk 00:15:03]} {[%emt 00:00:41]}
11. Ndf3 {[%clk 00:18:06]} {[%emt 00:00:17]} Ne4 {[%clk 00:13:40]} {[%emt
00:01:28]} 12. Nxd7 {[%clk 00:10:40]} {[%emt 00:07:31]} Qxd7 {[%clk 00:13:40]}
{[%emt 00:00:04]} 13. Ne5 {[%clk 00:10:44]} {[%emt 00:00:01]} Qc7 {[%clk
00:10:07]} {[%emt 00:03:38]} 14. e3 {[%clk 00:09:21]} {[%emt 00:01:28]} Bxe5
{[%clk 00:08:12]} {[%emt 00:02:00]} 15. dxe5 {[%clk 00:09:06]} {[%emt
00:00:20]} Rfd8 {[%clk 00:07:53]} {[%emt 00:00:24]} 16. Bxe4 {[%clk 00:06:50]}
{[%emt 00:02:21]} dxe4 {[%clk 00:07:30]} {[%emt 00:00:28]} 17. Qc2 {[%clk
00:04:55]} {[%emt 00:02:00]} Rd3 {[%clk 00:07:17]} {[%emt 00:00:18]} 18. c5
{[%clk 00:04:54]} {[%emt 00:00:07]} Rad8 {[%clk 00:06:55]} {[%emt 00:00:26]} 19.
Bd4 {[%clk 00:04:00]} {[%emt 00:00:59]} Bg4 {[%clk 00:05:21]} {[%emt 00:01:39]}
20. f3 {[%clk 00:03:31]} {[%emt 00:00:34]} Bxf3 {[%clk 00:03:59]} {[%emt
00:01:22]} 21. Rxf3 {[%clk 00:02:58]} {[%emt 00:00:38]} R3xd4 {[%clk 00:04:08]}
22. exd4 {[%clk 00:03:02]} {[%emt 00:00:01]} exf3 {[%clk 00:04:12]} 23. Rd1
{[%clk 00:02:29]} {[%emt 00:00:38]} b6 {[%clk 00:03:07]} {[%emt 00:01:11]} 24.
Kf2 {[%clk 00:01:32]} {[%emt 00:01:02]} Rd5 {[%clk 00:02:13]} {[%emt 00:00:59]}
25. b4 {[%clk 00:01:04]} {[%emt 00:00:32]} bxc5 {[%clk 00:01:55]} {[%emt
00:00:23]} 26. bxc5 {[%clk 00:01:07]} {[%emt 00:00:02]} Qd7 {[%clk 00:01:29]}
{[%emt 00:00:31]} 27. Qb2 {[%clk 00:00:35]} {[%emt 00:00:37]} Qd8 {[%clk
00:01:08]} {[%emt 00:00:26]} 28. Qd2 {[%clk 00:00:24]} {[%emt 00:00:16]} f6
{[%clk 00:01:00]} {[%emt 00:00:13]} 29. exf6 {[%clk 00:00:12]} {[%emt
00:00:17]} Qxf6 {[%clk 00:01:04]} 30. Qe3 {[%clk 00:00:11]} {[%emt 00:00:06]}
e5 {[%clk 00:00:36]} {[%emt 00:00:34]} 31. dxe5 {[%clk 00:00:15]} {[%emt
00:00:01]} Qxe5 {[%clk 00:00:21]} {[%emt 00:00:20]} 32. Qxe5 Rxe5 33. Rd8+
{[%clk 00:00:10]} {[%emt 00:00:04]} Kh7 {[%clk 00:00:30]} {[%emt 00:00:01]} 34.
Rd7 {[%clk 00:00:10]} {[%emt 00:00:05]} Rxc5 {[%clk 00:00:33]} {[%emt
00:00:02]} 35. Rxa7 {[%clk 00:00:15]} {[%emt 00:00:01]} Rc3 {[%clk 00:00:28]}
{[%emt 00:00:10]} 36. h4 {[%clk 00:00:19]} c5 {[%clk 00:00:32]} {[%emt
00:00:01]} 37. a4 {[%clk 00:00:20]} {[%emt 00:00:04]} c4 {[%clk 00:00:35]}
{[%emt 00:00:02]} 38. a5 {[%clk 00:00:24]} Ra3 {[%clk 00:00:28]} {[%emt
00:00:12]} 39. Rc7 {[%clk 00:00:17]} {[%emt 00:00:12]} Rxa5 {[%clk 00:00:25]}
{[%emt 00:00:08]} 40. Kxf3 {[%clk 00:00:08]} {[%emt 00:00:14]} Ra3+ {[%clk
00:00:26]} {[%emt 00:00:04]} 41. Kf4 {[%clk 00:00:10]} {[%emt 00:00:03]} c3
{[%clk 00:00:28]} {[%emt 00:00:03]} 42. g4 {[%clk 00:00:14]} {[%emt 00:00:01]}
Ra4+ {[%clk 00:00:13]} {[%emt 00:00:21]} 43. Kf5 {[%clk 00:00:16]} {[%emt
00:00:03]} Ra5+ {[%clk 00:00:17]} {[%emt 00:00:01]} 44. Kf4 {[%clk 00:00:18]}
{[%emt 00:00:02]} Ra4+ {[%clk 00:00:21]} {[%emt 00:00:01]} 45. Kf5 {[%clk
00:00:15]} {[%emt 00:00:08]} Ra5+ {[%clk 00:00:22]} {[%emt 00:00:04]} 46. Kf4
{[%emt 00:00:10]} 1/2-1/2

[Event "MCR rapid mládeže 2023 U16"]
[Site "Harachov, Czech Republic"]
[Date "2023.09.09"]
[Round "1.7"]
[White "Karafiat, Vojtech"]
[Black "Hrbek, Jachym"]
[Result "0-1"]
[TimeControl "20min+5s/move"]
[WhiteElo "1520"]
[BlackElo "1769"]

1. d4 {[%clk 00:20:06]} {[%emt 00:00:02]} Nf6 {[%clk 00:19:56]} {[%emt
00:00:14]} 2. Bf4 {[%clk 00:20:09]} {[%emt 00:00:03]} d6 {[%clk 00:19:38]}
{[%emt 00:00:23]} 3. Nc3 {[%clk 00:19:32]} {[%emt 00:00:42]} g6 {[%clk
00:19:16]} {[%emt 00:00:26]} 4. e4 {[%clk 00:19:14]} {[%emt 00:00:23]} Bg7
{[%clk 00:19:09]} {[%emt 00:00:12]} 5. Qd2 {[%clk 00:19:12]} {[%emt 00:00:08]}
c6 {[%clk 00:19:07]} {[%emt 00:00:07]} 6. O-O-O {[%clk 00:19:00]} {[%emt
00:00:16]} b5 {[%clk 00:18:16]} {[%emt 00:00:56]} 7. d5 {[%clk 00:15:26]}
{[%emt 00:03:39]} b4 {[%clk 00:17:45]} {[%emt 00:00:36]} 8. dxc6 {[%clk
00:09:44]} {[%emt 00:05:47]} bxc3 {[%clk 00:17:29]} {[%emt 00:00:21]} 9. Qxc3
{[%clk 00:09:45]} {[%emt 00:00:05]} Qb6 {[%clk 00:16:34]} {[%emt 00:00:59]} 10.
Be3 {[%clk 00:05:53]} {[%emt 00:03:57]} Nh5 {[%clk 00:15:16]} {[%emt 00:01:23]}
11. Bd4 {[%clk 00:00:08]} {[%emt 00:05:51]} Bxd4 {[%clk 00:15:04]} {[%emt
00:00:18]} 12. Rxd4 {[%clk 00:00:06]} {[%emt 00:00:06]} O-O {[%clk 00:14:55]}
{[%emt 00:00:13]} 13. Rb4 {[%clk 00:00:07]} {[%emt 00:00:05]} Qxc6 {[%clk
00:14:02]} {[%emt 00:00:57]} 14. Qxc6 {[%clk 00:00:07]} {[%emt 00:00:05]} Nxc6
{[%clk 00:14:03]} {[%emt 00:00:04]} 15. Rc4 {[%clk 00:00:06]} {[%emt 00:00:06]}
Ba6 {[%clk 00:13:57]} {[%emt 00:00:11]} 16. Rxc6 {[%clk 00:00:08]} {[%emt
00:00:04]} Bxf1 {[%clk 00:13:56]} {[%emt 00:00:05]} 17. Nf3 {[%clk 00:00:08]}
{[%emt 00:00:05]} Bxg2 {[%clk 00:13:44]} {[%emt 00:00:17]} 0-1

[Event "MCR rapid mládeže 2023 U16"]
[Site "Harachov, Czech Republic"]
[Date "2023.09.09"]
[Round "1.8"]
[White "Garabik, Marek"]
[Black "Krajicek, Matej"]
[Result "0-1"]
[TimeControl "20min+5s/move"]
[WhiteElo "1787"]
[BlackElo "1565"]

1. e4 {[%clk 00:19:58]} {[%emt 00:00:11]} c6 {[%clk 00:19:51]} {[%emt
00:00:20]} 2. d4 {[%clk 00:19:57]} {[%emt 00:00:06]} d5 {[%clk 00:19:54]}
{[%emt 00:00:02]} 3. f3 {[%clk 00:20:01]} {[%emt 00:00:02]} dxe4 {[%clk
00:19:34]} {[%emt 00:00:25]} 4. fxe4 {[%clk 00:20:03]} {[%emt 00:00:02]} e5
{[%clk 00:19:26]} {[%emt 00:00:13]} 5. Nf3 {[%clk 00:20:04]} {[%emt 00:00:04]}
Bg4 {[%clk 00:18:40]} {[%emt 00:00:51]} 6. c3 {[%clk 00:19:15]} {[%emt
00:00:54]} Bxf3 {[%clk 00:15:54]} {[%emt 00:02:51]} 7. Qxf3 {[%clk 00:18:47]}
{[%emt 00:00:34]} Qh4+ {[%clk 00:14:29]} {[%emt 00:01:29]} 8. g3 {[%clk
00:18:11]} {[%emt 00:00:41]} Qf6 {[%clk 00:14:33]} {[%emt 00:00:02]} 9. Bg2
{[%clk 00:17:36]} {[%emt 00:00:39]} Nd7 {[%clk 00:13:28]} {[%emt 00:01:10]} 10.
O-O {[%clk 00:15:57]} {[%emt 00:01:44]} Qxf3 {[%clk 00:13:28]} {[%emt
00:00:06]} 11. Bxf3 {[%clk 00:15:58]} {[%emt 00:00:04]} O-O-O {[%clk 00:11:10]}
{[%emt 00:02:23]} 12. Be3 {[%clk 00:14:13]} {[%emt 00:01:50]} Kb8 {[%clk
00:10:49]} {[%emt 00:00:26]} 13. Nd2 {[%clk 00:13:58]} {[%emt 00:00:19]} f6
{[%clk 00:10:34]} {[%emt 00:00:21]} 14. Rad1 {[%clk 00:12:17]} {[%emt
00:01:45]} Bd6 {[%clk 00:08:44]} {[%emt 00:01:55]} 15. Nc4 {[%clk 00:09:50]}
{[%emt 00:02:32]} Bc7 {[%clk 00:08:43]} {[%emt 00:00:06]} 16. Bg4 {[%clk
00:05:19]} {[%emt 00:04:36]} Nb6 {[%clk 00:07:59]} {[%emt 00:00:50]} 17. Nd2
{[%clk 00:03:36]} {[%emt 00:01:48]} Ne7 {[%clk 00:04:38]} {[%emt 00:03:27]} 18.
Be2 {[%clk 00:01:21]} {[%emt 00:02:20]} Rhe8 {[%clk 00:02:38]} {[%emt
00:02:04]} 19. Nb3 {[%clk 00:00:21]} {[%emt 00:01:05]} exd4 {[%clk 00:01:37]}
{[%emt 00:01:06]} 20. cxd4 {[%emt 00:00:03]} Ng6 {[%emt 00:00:13]} 21. Bd3
{[%emt 00:01:18]} Na4 {[%emt 00:00:10]} 22. Rf2 {[%emt 00:00:12]} Bb6 {[%emt
00:00:15]} 23. Bc4 {[%clk 00:00:09]} Rxe4 {[%clk 00:00:09]} {[%emt 00:00:10]}
24. Re2 {[%clk 00:00:08]} {[%emt 00:00:06]} Bc7 {[%clk 00:00:13]} {[%emt
00:00:01]} 25. Rde1 {[%clk 00:00:09]} {[%emt 00:00:04]} Nb6 {[%clk 00:00:17]}
{[%emt 00:00:01]} 26. Bd3 {[%clk 00:00:12]} {[%emt 00:00:01]} Ree8 {[%clk
00:00:19]} {[%emt 00:00:03]} 27. Bb1 {[%clk 00:00:13]} {[%emt 00:00:04]} Nd5
{[%clk 00:00:21]} {[%emt 00:00:02]} 28. Bd2 {[%clk 00:00:13]} {[%emt 00:00:04]}
Rxe2 {[%clk 00:00:21]} {[%emt 00:00:06]} 29. Rxe2 {[%clk 00:00:17]} Bb6 {[%clk
00:00:08]} {[%emt 00:00:19]} 30. Bf5 {[%clk 00:00:10]} {[%emt 00:00:12]} Kc7
{[%clk 00:00:09]} {[%emt 00:00:04]} 31. Bc3 {[%clk 00:00:09]} {[%emt 00:00:06]}
Nxc3 {[%clk 00:00:12]} {[%emt 00:00:01]} 32. bxc3 {[%clk 00:00:13]} {[%emt
00:00:02]} Rg8 {[%clk 00:00:07]} {[%emt 00:00:10]} 33. Bxg6 {[%clk 00:00:12]}
{[%emt 00:00:06]} hxg6 {[%clk 00:00:11]} 34. Re7+ {[%clk 00:00:16]} Kc8 {[%clk
00:00:12]} {[%emt 00:00:04]} 35. Nc1 {[%clk 00:00:17]} {[%emt 00:00:04]} c5
{[%clk 00:00:14]} {[%emt 00:00:04]} 36. d5 {[%clk 00:00:20]} {[%emt 00:00:02]}
c4+ {[%clk 00:00:17]} {[%emt 00:00:01]} 37. Kg2 {[%clk 00:00:24]} {[%emt
00:00:01]} Ba5 {[%clk 00:00:09]} {[%emt 00:00:13]} 38. Ne2 {[%clk 00:00:27]}
{[%emt 00:00:01]} a6 {[%clk 00:00:11]} {[%emt 00:00:04]} 39. Kf3 {[%clk
00:00:27]} {[%emt 00:00:05]} b6 {[%clk 00:00:09]} {[%emt 00:00:07]} 40. Ke4
{[%clk 00:00:23]} {[%emt 00:00:09]} Kd8 {[%clk 00:00:13]} {[%emt 00:00:02]} 41.
Ra7 {[%clk 00:00:26]} {[%emt 00:00:02]} Re8+ {[%clk 00:00:16]} {[%emt
00:00:02]} 42. Kf3 {[%clk 00:00:30]} Re7 {[%clk 00:00:19]} {[%emt 00:00:02]} 43.
Rxa6 {[%clk 00:00:33]} {[%emt 00:00:02]} Kc8 {[%clk 00:00:22]} {[%emt
00:00:02]} 44. Ra8+ {[%clk 00:00:33]} {[%emt 00:00:05]} Kd7 {[%clk 00:00:21]}
{[%emt 00:00:06]} 45. Ra7+ {[%clk 00:00:31]} {[%emt 00:00:08]} Kd6 {[%clk
00:00:25]} {[%emt 00:00:01]} 46. Rxe7 {[%clk 00:00:34]} {[%emt 00:00:01]} Kxe7
{[%clk 00:00:29]} 47. Ke4 {[%clk 00:00:38]} Kd6 {[%clk 00:00:30]} {[%emt
00:00:04]} 48. Kd4 {[%clk 00:00:42]} b5 {[%clk 00:00:33]} {[%emt 00:00:02]} 49.
Nf4 {[%clk 00:00:38]} {[%emt 00:00:09]} f5 {[%clk 00:00:32]} {[%emt 00:00:06]}
50. Ke3 {[%clk 00:00:26]} {[%emt 00:00:16]} Bxc3 {[%clk 00:00:34]} {[%emt
00:00:03]} 51. Nxg6 {[%clk 00:00:29]} {[%emt 00:00:02]} Kxd5 {[%clk 00:00:37]}
{[%emt 00:00:02]} 52. Ne7+ {[%clk 00:00:33]} {[%emt 00:00:01]} Ke6 {[%clk
00:00:39]} {[%emt 00:00:02]} 53. Ng6 {[%clk 00:00:30]} {[%emt 00:00:09]} Be5
{[%clk 00:00:28]} {[%emt 00:00:16]} 54. Nh4 {[%clk 00:00:27]} {[%emt 00:00:08]}
b4 {[%clk 00:00:25]} {[%emt 00:00:09]} 55. Nf3 {[%clk 00:00:29]} {[%emt
00:00:03]} b3 {[%clk 00:00:27]} {[%emt 00:00:03]} 56. axb3 {[%clk 00:00:15]}
{[%emt 00:00:19]} cxb3 {[%clk 00:00:31]} 57. Kd2 {[%clk 00:00:19]} {[%emt
00:00:01]} Bf6 {[%clk 00:00:23]} {[%emt 00:00:13]} 58. Kc1 {[%clk 00:00:18]}
{[%emt 00:00:06]} b2+ {[%clk 00:00:16]} {[%emt 00:00:12]} 59. Kc2 {[%clk
00:00:18]} {[%emt 00:00:05]} Kd5 {[%clk 00:00:20]} {[%emt 00:00:02]} 60. Nd2
{[%clk 00:00:08]} {[%emt 00:00:14]} Bg5 {[%clk 00:00:08]} {[%emt 00:00:17]} 61.
Nf3 {[%clk 00:00:10]} {[%emt 00:00:04]} Bf6 {[%clk 00:00:08]} {[%emt 00:00:04]}
62. Nd2 {[%clk 00:00:14]} {[%emt 00:00:01]} g5 {[%clk 00:00:11]} {[%emt
00:00:03]} 63. Kb1 {[%clk 00:00:11]} {[%emt 00:00:08]} f4 {[%clk 00:00:12]}
{[%emt 00:00:04]} 64. gxf4 {[%clk 00:00:14]} {[%emt 00:00:02]} gxf4 {[%clk
00:00:16]} 65. Kc2 {[%clk 00:00:17]} {[%emt 00:00:02]} Ke6 {[%clk 00:00:18]}
{[%emt 00:00:03]} 66. Nf3 {[%clk 00:00:14]} {[%emt 00:00:08]} Kf5 {[%clk
00:00:21]} {[%emt 00:00:02]} 67. Ne1 {[%clk 00:00:11]} {[%emt 00:00:07]} Ke4
{[%clk 00:00:17]} {[%emt 00:00:09]} 68. h3 {[%clk 00:00:08]} {[%emt 00:00:08]}
f3 {[%clk 00:00:10]} {[%emt 00:00:12]} 69. Nxf3 {[%clk 00:00:07]} {[%emt
00:00:05]} Kxf3 {[%clk 00:00:14]} {[%emt 00:00:02]} 70. Kb1 {[%clk 00:00:11]}
{[%emt 00:00:01]} Kg3 {[%clk 00:00:18]} 71. Kc2 {[%clk 00:00:15]} Kxh3 {[%clk
00:00:21]} {[%emt 00:00:02]} 72. Kb1 {[%clk 00:00:20]} Kg3 {[%clk 00:00:25]}
{[%emt 00:00:02]} 73. Kc2 {[%clk 00:00:24]} Kf3 {[%clk 00:00:28]} {[%emt
00:00:01]} 74. Kb1 {[%clk 00:00:29]} Ke3 {[%clk 00:00:32]} {[%emt 00:00:02]} 75.
Kc2 {[%clk 00:00:31]} {[%emt 00:00:02]} Ke2 {[%clk 00:00:35]} {[%emt 00:00:02]}
76. Kb1 {[%clk 00:00:35]} {[%emt 00:00:02]} Kd2 {[%clk 00:00:38]} {[%emt
00:00:02]} 77. Ka2 {[%clk 00:00:38]} {[%emt 00:00:02]} Kc2 {[%emt 00:00:01]} 78.
Ka3 b1=Q {[%clk 00:00:44]} {[%emt 00:00:02]} 0-1

[Event "MCR rapid mládeže 2023 U16"]
[Site "Harachov, Czech Republic"]
[Date "2023.09.09"]
[Round "1.10"]
[White "Policerova, Barbora"]
[Black "Kaplanova, Dominika"]
[Result "0-1"]
[TimeControl "20min+5s/move"]
[WhiteElo "1503"]
[BlackElo "1461"]

1. e4 {[%clk 00:20:08]} c6 {[%clk 00:20:03]} {[%emt 00:00:08]} 2. Nc3 {[%clk
00:19:55]} {[%emt 00:00:19]} d5 {[%clk 00:20:01]} {[%emt 00:00:07]} 3. d4
{[%clk 00:19:36]} {[%emt 00:00:23]} dxe4 {[%clk 00:19:59]} {[%emt 00:00:07]} 4.
Nxe4 {[%clk 00:19:16]} {[%emt 00:00:25]} Nf6 {[%clk 00:19:56]} {[%emt
00:00:09]} 5. Nxf6+ {[%clk 00:18:49]} {[%emt 00:00:32]} exf6 {[%clk 00:19:55]}
{[%emt 00:00:06]} 6. Bc4 {[%clk 00:18:32]} {[%emt 00:00:21]} Bd6 {[%clk
00:19:42]} {[%emt 00:00:15]} 7. Be3 {[%clk 00:18:03]} {[%emt 00:00:37]} O-O
{[%clk 00:19:02]} {[%emt 00:00:45]} 8. Nf3 {[%clk 00:17:47]} {[%emt 00:00:21]}
Qb6 {[%clk 00:17:40]} {[%emt 00:01:26]} 9. b3 {[%clk 00:16:44]} {[%emt
00:01:09]} Bb4+ {[%clk 00:17:13]} {[%emt 00:00:32]} 10. Nd2 {[%clk 00:16:38]}
{[%emt 00:00:11]} Bc3 {[%clk 00:16:13]} {[%emt 00:01:04]} 11. Rb1 {[%clk
00:15:58]} {[%emt 00:00:47]} Bxd4 {[%clk 00:15:32]} {[%emt 00:00:45]} 12. Qf3
{[%clk 00:13:41]} {[%emt 00:02:22]} Bxe3 {[%clk 00:14:34]} {[%emt 00:01:04]} 13.
fxe3 {[%clk 00:13:27]} {[%emt 00:00:18]} Nd7 {[%clk 00:12:35]} {[%emt
00:02:05]} 14. Qg3 {[%clk 00:10:21]} {[%emt 00:03:10]} Re8 {[%clk 00:10:55]}
{[%emt 00:01:44]} 15. O-O {[%clk 00:06:24]} {[%emt 00:04:04]} Qxe3+ {[%clk
00:08:16]} {[%emt 00:02:44]} 16. Qxe3 {[%clk 00:06:18]} {[%emt 00:00:10]} Rxe3
{[%clk 00:08:12]} {[%emt 00:00:09]} 17. Rbd1 {[%clk 00:05:18]} {[%emt
00:01:05]} Re8 {[%clk 00:07:38]} {[%emt 00:00:39]} 18. Nf3 {[%clk 00:05:11]}
{[%emt 00:00:12]} Nb6 {[%clk 00:07:15]} {[%emt 00:00:29]} 19. Bd3 {[%clk
00:04:07]} {[%emt 00:01:09]} Bg4 {[%clk 00:05:59]} {[%emt 00:01:20]} 20. c4
{[%clk 00:03:48]} {[%emt 00:00:26]} Rad8 {[%clk 00:05:24]} {[%emt 00:00:40]} 21.
a4 {[%clk 00:03:30]} {[%emt 00:00:23]} Nd7 {[%clk 00:04:43]} {[%emt 00:00:45]}
22. Bc2 {[%clk 00:03:07]} {[%emt 00:00:29]} Bxf3 {[%clk 00:03:55]} {[%emt
00:00:52]} 23. Rxf3 {[%clk 00:03:02]} {[%emt 00:00:09]} Ne5 {[%clk 00:03:58]}
{[%emt 00:00:03]} 24. Rff1 {[%clk 00:02:46]} {[%emt 00:00:21]} Ng4 {[%clk
00:03:03]} {[%emt 00:00:57]} 25. Bf5 {[%clk 00:02:32]} {[%emt 00:00:23]} Ne3
{[%clk 00:02:02]} {[%emt 00:01:05]} 26. Rxd8 {[%clk 00:02:29]} {[%emt
00:00:08]} Rxd8 {[%clk 00:02:05]} {[%emt 00:00:02]} 27. Rf3 {[%clk 00:02:23]}
{[%emt 00:00:10]} Nxf5 {[%clk 00:01:41]} {[%emt 00:00:30]} 28. Rxf5 {[%clk
00:02:22]} {[%emt 00:00:07]} Rd3 {[%clk 00:01:34]} {[%emt 00:00:09]} 29. b4
{[%clk 00:02:24]} {[%emt 00:00:05]} Rd4 {[%clk 00:01:38]} {[%emt 00:00:02]} 30.
Rc5 {[%clk 00:02:18]} {[%emt 00:00:10]} Kf8 {[%clk 00:01:36]} {[%emt 00:00:07]}
31. Kf2 {[%clk 00:02:19]} {[%emt 00:00:03]} Rd2+ {[%clk 00:01:29]} {[%emt
00:00:13]} 32. Kf3 {[%clk 00:02:16]} {[%emt 00:00:09]} Ra2 {[%clk 00:01:11]}
{[%emt 00:00:23]} 33. Ra5 {[%clk 00:02:06]} {[%emt 00:00:14]} a6 {[%clk
00:01:14]} {[%emt 00:00:02]} 34. h4 {[%clk 00:02:04]} {[%emt 00:00:07]} Ke7
{[%clk 00:01:18]} {[%emt 00:00:02]} 35. g4 {[%clk 00:02:03]} {[%emt 00:00:05]}
Rc2 {[%clk 00:01:10]} {[%emt 00:00:12]} 36. b5 {[%clk 00:01:49]} {[%emt
00:00:20]} cxb5 {[%clk 00:00:48]} {[%emt 00:00:28]} 37. cxb5 {[%clk 00:01:49]}
{[%emt 00:00:05]} axb5 {[%clk 00:00:41]} {[%emt 00:00:12]} 38. Rxb5 {[%clk
00:01:51]} {[%emt 00:00:02]} Rc7 {[%clk 00:00:34]} {[%emt 00:00:12]} 39. a5
{[%clk 00:01:53]} {[%emt 00:00:03]} Kd7 {[%clk 00:00:35]} {[%emt 00:00:04]} 40.
Ke4 {[%clk 00:01:36]} {[%emt 00:00:22]} Kc8 {[%clk 00:00:33]} {[%emt 00:00:07]}
41. Rh5 {[%clk 00:01:25]} {[%emt 00:00:15]} h6 {[%clk 00:00:35]} {[%emt
00:00:03]} 42. Rb5 {[%clk 00:01:20]} {[%emt 00:00:11]} g6 {[%clk 00:00:32]}
{[%emt 00:00:08]} 43. Rb6 {[%clk 00:01:14]} {[%emt 00:00:11]} Rc6 {[%clk
00:00:22]} {[%emt 00:00:14]} 44. Rb5 {[%clk 00:01:08]} {[%emt 00:00:11]} Kb8
{[%clk 00:00:24]} {[%emt 00:00:04]} 45. Kd5 {[%clk 00:01:09]} {[%emt 00:00:04]}
Ka7 {[%clk 00:00:20]} {[%emt 00:00:09]} 46. Ke4 {[%clk 00:00:43]} {[%emt
00:00:31]} Re6+ {[%clk 00:00:22]} {[%emt 00:00:04]} 47. Kd5 {[%clk 00:00:44]}
{[%emt 00:00:04]} Re5+ {[%clk 00:00:25]} {[%emt 00:00:01]} 48. Kc4 {[%clk
00:00:43]} {[%emt 00:00:06]} Rxb5 {[%clk 00:00:25]} {[%emt 00:00:05]} 49. Kxb5
{[%clk 00:00:47]} {[%emt 00:00:01]} h5 {[%clk 00:00:17]} {[%emt 00:00:14]} 50.
Kc4 {[%clk 00:00:39]} {[%emt 00:00:13]} Ka6 {[%clk 00:00:21]} {[%emt 00:00:01]}
0-1